bitfinex/quotes_BTCUSD_20260126
["timestamp","ask_amount","ask_price","bid_price","bid_amount"]
[1769459042230,0.01136596,87982.0,87965.0,0.06897107]
[1769459042403,0.03,87974.0,87951.0,0.0002]
[1769459042620,0.04136802,87966.0,87953.0,0.58124603]
[1769459042807,0.03,87964.0,87951.0,0.0003269]
[1769459043034,0.02414988,87964.0,87951.0,0.0003269]
[1769459043242,0.1356519,87983.0,87927.0,0.1750326]
[1769459043243,0.03,87960.0,87927.0,0.1750326]
[1769459043493,0.03,87952.0,87946.0,0.00045252]
[1769459045217,0.02414988,87953.0,87946.0,0.00045252]
[1769459045218,0.03,87947.0,87946.0,0.00045252]
[1769459045424,0.03,87947.0,87946.0,0.00022626]
[1769459045632,0.03,87945.0,87935.0,0.58124603]
[1769459046042,0.03,87945.0,87935.0,0.5813859]
[1769459046689,0.03,87944.0,87935.0,0.5813859]
[1769459047521,0.03,87944.0,87935.0,0.5815035]
[1769459047723,0.03551958,87953.0,87935.0,0.5815035]
[1769459047724,0.03,87943.0,87935.0,0.5815035]
[1769459048130,0.02414988,87953.0,87943.0,0.00022626]
[1769459048375,0.0350986,87953.0,87940.0,0.58124603]
[1769459048528,0.0237289,87953.0,87940.0,0.58136363]
[1769459048733,0.01136919,87957.0,87940.0,0.58136363]
[1769459048734,0.02414988,87968.0,87945.0,0.02317847]
[1769459048944,0.17476,87967.0,87948.0,0.58124603]
[1769459049287,0.17476,87967.0,87940.0,0.0001176]
[1769459049288,0.17476,87967.0,87951.0,0.58124603]
[1769459049693,0.03,87966.0,87951.0,0.58124603]
[1769459050610,0.03,87965.0,87951.0,0.58092494]
[1769459050825,0.03,87965.0,87946.0,0.0001176]
[1769459050826,0.03,87965.0,87955.0,0.02317847]
[1769459051027,0.03,87965.0,87956.0,0.60410341]
[1769459051464,0.17476,87972.0,87956.0,0.60410341]
[1769459051666,0.02414988,87971.0,87956.0,0.58092494]
[1769459051935,0.03,87970.0,87956.0,0.58092494]
[1769459053885,0.03,87970.0,87946.0,0.0001176]
[1769459053886,0.01,87956.0,87946.0,0.0001176]
[1769459054113,0.03,87955.0,87949.0,0.58124603]
[1769459054972,0.03,87961.0,87949.0,0.58124603]
[1769459055226,0.05414988,87961.0,87949.0,0.58124603]
[1769459056545,0.03,87961.0,87946.0,0.0001176]
[1769459056734,0.05414988,87960.0,87947.0,0.58124603]
[1769459058024,0.05414988,87960.0,87947.0,0.58050911]
[1769459062546,0.03,87965.0,87947.0,0.58050911]
[1769459063542,0.03,87965.0,87949.0,0.5426004]
[1769459064458,0.03,87965.0,87949.0,0.54227934]
[1769459065630,0.03,87963.0,87949.0,0.54227934]
[1769459065832,0.38120842,87970.0,87946.0,0.0001176]
[1769459065833,0.03,87948.0,87946.0,0.0001176]
[1769459066980,0.0568483,87954.0,87925.0,0.0003532]
[1769459066981,0.03,87947.0,87933.0,0.5426004]
[1769459067182,0.03,87944.0,87926.0,0.5426004]
[1769459067385,0.03,87940.0,87926.0,0.5426004]
[1769459067547,0.06822609,87943.0,87926.0,0.5426004]
[1769459067548,0.03,87938.0,87926.0,0.5426004]
[1769459067767,0.02268029,87958.0,87938.0,0.0001176]
[1769459067977,0.01136957,87954.0,87938.0,0.542718]
[1769459068179,0.06821884,87953.0,87939.0,0.05428579]
[1769459068427,0.02268029,87951.0,87938.0,0.5426004]
[1769459068626,0.03,87950.0,87938.0,0.5426004]
[1769459069415,0.03,87939.0,87938.0,0.5426004]
[1769459069930,0.1,87940.0,87939.0,0.0001176]
[1769459070125,0.1,87940.0,87939.0,0.542718]
[1769459070896,0.1,87940.0,87939.0,0.5426004]
[1769459071117,0.1,87940.0,87934.0,0.02305284]
[1769459071322,0.1,87940.0,87936.0,0.5426004]
[1769459071523,0.01137022,87949.0,87927.0,0.5426004]
[1769459071524,0.05268029,87945.0,87927.0,0.5426004]
[1769459072152,0.05268029,87945.0,87927.0,0.54227976]
[1769459072153,0.05281982,87945.0,87927.0,0.54227976]
[1769459072361,0.03,87943.0,87927.0,0.54191828]
[1769459072571,0.03,87939.0,87927.0,0.54191828]
[1769459072775,0.03,87939.0,87925.0,0.0003532]
[1769459072776,0.03,87937.0,87925.0,0.0003532]
[1769459073186,0.03,87937.0,87925.0,0.5429536]
[1769459073595,0.04137177,87937.0,87925.0,0.5429536]
[1769459073795,0.06405258,87933.0,87925.0,0.0003532]
[1769459073977,0.03,87931.0,87925.0,0.0003532]
[1769459074176,0.02268029,87926.0,87925.0,0.0003532]
[1769459074387,0.02268029,87926.0,87914.0,0.0002]
[1769459074388,0.05268029,87926.0,87914.0,0.0002]
[1769459074735,0.03,87924.0,87914.0,0.0002]
[1769459075725,0.03,87923.0,87914.0,0.0002]
[1769459076234,0.03,87923.0,87915.0,0.5426004]
[1769459076816,0.03,87931.0,87915.0,0.5426004]
[1769459077592,0.01151027,87945.0,87914.0,0.0002]
[1769459077593,0.17484,87941.0,87931.0,0.5430712]
[1769459077764,0.03,87940.0,87931.0,0.5430712]
[1769459079538,0.02268029,87964.0,87933.0,0.02305284]
[1769459079783,0.02268029,87959.0,87940.0,0.38120842]
[1769459079985,0.02268029,87959.0,87941.0,0.5426004]
[1769459080596,0.03,87958.0,87941.0,0.5426004]
[1769459081262,0.03,87958.0,87943.0,0.5426004]
[1769459081465,0.03,87958.0,87943.0,0.56565324]
[1769459081615,0.02268029,87959.0,87942.0,0.09468617]
[1769459081616,0.03,87957.0,87945.0,0.5426004]
[1769459082638,0.19752029,87964.0,87945.0,0.5426004]
[1769459082639,0.03,87956.0,87945.0,0.5426004]
[1769459082797,0.03,87956.0,87945.0,0.56565324]
[1769459083671,0.05268029,87963.0,87945.0,0.56565324]
[1769459085391,0.03,87961.0,87945.0,0.56565324]
[1769459086214,0.03,87961.0,87947.0,0.5426004]
[1769459086426,0.03,87960.0,87949.0,0.5426004]
[1769459086632,0.03,87960.0,87949.0,0.56565324]
[1769459086834,0.03,87960.0,87951.0,0.5426004]
[1769459087456,0.03,87959.0,87951.0,0.5426004]
[1769459088466,0.03,87958.0,87951.0,0.5426004]
[1769459089232,0.03,87958.0,87944.0,0.02305284]
[1769459089432,0.03,87957.0,87945.0,0.54438845]
[1769459090363,0.03,87956.0,87945.0,0.54438845]
[1769459090994,0.03,87956.0,87945.0,0.63927783]
[1769459091376,0.03,87960.0,87945.0,0.63927783]
[1769459093474,0.03,87960.0,87945.0,0.54438845]
[1769459097199,0.03,87967.0,87945.0,0.54438845]
[1769459097361,0.03,87965.0,87945.0,0.54438845]
[1769459097790,0.05783383,87965.0,87945.0,0.54438845]
[1769459099996,0.03,87967.0,87945.0,0.54438845]
[1769459100199,0.03233111,87962.0,87947.0,0.54438845]
[1769459100401,0.06233111,87959.0,87947.0,0.54438845]
[1769459100955,0.06457964,87957.0,87947.0,0.54438845]
[1769459101328,0.06457964,87957.0,87941.0,0.54438845]
[1769459105648,0.03,87955.0,87941.0,0.54438845]
[1769459106763,0.03,87947.0,87934.0,0.54438845]
[1769459109341,0.03,87946.0,87934.0,0.54438845]
[1769459110412,0.07132599,87948.0,87934.0,0.54438845]
[1769459112801,0.03,87946.0,87933.0,0.00013953]
[1769459113004,0.06907707,87944.0,87933.0,0.00013953]
[1769459113328,0.06907707,87944.0,87934.0,0.54438845]
[1769459114922,0.01137009,87950.0,87933.0,0.00013953]
[1769459114923,0.03,87943.0,87933.0,0.00013953]
[1769459115294,0.06457896,87934.0,87933.0,0.00013953]
[1769459115922,0.03,87932.0,87916.0,0.1748]
[1769459116128,0.01137126,87941.0,87920.0,0.38145251]
[1769459116129,0.03,87930.0,87920.0,0.38145251]
[1769459116343,0.03013987,87930.0,87921.0,0.54438845]
[1769459117122,0.03,87929.0,87921.0,0.54438845]
[1769459117325,0.03,87929.0,87914.0,0.04572]
[1769459117525,0.05783208,87929.0,87915.0,0.54438845]
[1769459118084,0.00013987,87930.0,87915.0,0.54438845]
[1769459118541,0.03013987,87930.0,87915.0,0.54438845]
[1769459118748,0.03,87924.0,87914.0,0.0002]
[1769459118984,0.03,87920.0,87914.0,0.0002]
[1769459119191,0.01137345,87924.0,87914.0,0.0002]
[1769459119192,0.05454831,87915.0,87914.0,0.0002]
[1769459120155,0.53761729,87925.0,87900.0,0.54795049]
[1769459120156,0.00877056,87907.0,87900.0,0.54795049]
[1769459120363,0.00877056,87907.0,87897.0,0.0002743]
[1769459120364,0.0002,87912.0,87901.0,0.54795049]
[1769459120777,0.02454831,87914.0,87901.0,0.54795049]
[1769459121204,0.03,87913.0,87901.0,0.54795049]
[1769459121409,0.05454831,87913.0,87901.0,0.54795049]
[1769459122056,0.03,87913.0,87901.0,0.54795049]
[1769459122295,0.03,87913.0,87897.0,0.0002743]
[1769459122297,0.03,87900.0,87897.0,0.0002743]
[1769459122509,0.03,87900.0,87871.0,0.02241778]
[1769459122510,0.53408908,87899.0,87878.0,0.54795049]
[1769459122742,0.39282907,87900.0,87878.0,0.54795049]
[1769459122743,0.01137695,87897.0,87878.0,0.54795049]
[1769459122948,0.03,87888.0,87874.0,0.54795049]
[1769459123516,0.03,87888.0,87880.0,0.00074086]
[1769459123713,0.18621708,87896.0,87880.0,0.00074086]
[1769459123714,0.01137617,87903.0,87888.0,0.00682612]
[1769459123910,0.03,87904.0,87891.0,0.54795049]
[1769459124515,0.03,87904.0,87891.0,0.57135812]
[1769459124904,0.03,87903.0,87891.0,0.57135812]
[1769459125108,0.03,87903.0,87880.0,0.00074086]
[1769459125109,0.03,87903.0,87881.0,0.54795049]
[1769459125350,0.01137552,87908.0,87882.0,0.57135812]
[1769459125351,0.03,87899.0,87882.0,0.57135812]
[1769459128948,0.03,87898.0,87882.0,0.57135812]
[1769459129155,0.05454831,87898.0,87882.0,0.57135812]
[1769459129363,0.03,87896.0,87882.0,0.57135812]
[1769459130421,0.03,87897.0,87882.0,0.57135812]
[1769459131008,0.09796469,87897.0,87882.0,0.57135812]
[1769459131217,0.03,87895.0,87882.0,0.57135812]
[1769459131569,0.03,87895.0,87882.0,0.54795049]
[1769459131979,0.03,87895.0,87880.0,0.00074086]
[1769459132177,0.03,87896.0,87880.0,0.54869135]
[1769459132592,0.56408908,87896.0,87880.0,0.54869135]
[1769459132800,0.58673355,87894.0,87880.0,0.00074086]
[1769459133737,0.03,87893.0,87881.0,0.54795049]
[1769459133944,0.03,87893.0,87883.0,0.54795049]
[1769459134153,0.02264447,87901.0,87883.0,0.54795049]
[1769459134316,0.02264447,87901.0,87885.0,0.54795049]
[1769459134521,0.17488,87909.0,87887.0,0.54795049]
[1769459134722,0.17488,87909.0,87885.0,0.05688822]
[1769459134723,0.03,87908.0,87890.0,0.02340763]
[1769459134975,0.03,87908.0,87892.0,0.02340763]
[1769459135395,0.17488,87909.0,87883.0,0.57135812]
[1769459135396,0.58223578,87903.0,87883.0,0.57135812]
[1769459135604,0.59361195,87903.0,87883.0,0.57135812]
[1769459135778,0.58223578,87903.0,87883.0,0.57135812]
[1769459136586,0.03,87901.0,87883.0,0.57135812]
[1769459137201,0.03,87901.0,87884.0,0.02340763]
[1769459137395,0.03,87901.0,87887.0,0.54795049]
[1769459137648,0.03,87906.0,87888.0,0.57135812]
[1769459138434,0.03,87906.0,87890.0,0.54795049]
[1769459138646,0.03,87906.0,87891.0,0.02340763]
[1769459138848,0.03,87906.0,87891.0,0.57135812]
[1769459139812,0.18629436,87917.0,87880.0,0.00074086]
[1769459139813,0.03,87918.0,87906.0,0.00061033]
[1769459140035,0.03,87911.0,87881.0,0.04556]
[1769459140250,0.03,87911.0,87885.0,0.54795049]
[1769459140251,0.04137539,87909.0,87885.0,0.54795049]
[1769459140462,0.03,87909.0,87889.0,0.54795049]
[1769459140699,0.03,87909.0,87891.0,0.54795049]
[1769459140919,0.04137539,87909.0,87893.0,0.02340763]
[1769459141148,0.04137539,87909.0,87893.0,0.57135812]
[1769459141149,0.03,87909.0,87893.0,0.57135812]
[1769459141359,0.03,87908.0,87893.0,0.57135812]
[1769459141580,0.03,87908.0,87894.0,0.02340763]
[1769459141913,0.03,87908.0,87896.0,0.57135812]
[1769459142011,0.03,87908.0,87897.0,0.02340763]
[1769459142433,0.03,87907.0,87897.0,0.02340763]
[1769459143342,0.03,87906.0,87897.0,0.02340763]
[1769459144379,0.01364906,87916.0,87898.0,0.6050863]
[1769459144553,0.17492,87923.0,87901.0,0.02340763]
[1769459144728,0.5454624,87925.0,87905.0,0.02340763]
[1769459144932,0.54546279,87922.0,87905.0,0.02340763]
[1769459145166,0.55223598,87922.0,87905.0,0.02340763]
[1769459145318,0.03,87921.0,87905.0,0.02340763]
[1769459145715,0.56408908,87921.0,87905.0,0.02340763]
[1769459146673,0.0181469,87922.0,87886.0,0.06827023]
[1769459146674,0.00938966,87905.0,87886.0,0.54795049]
[1769459146865,0.03,87904.0,87892.0,0.02340763]
[1769459147043,0.03,87904.0,87893.0,0.02340763]
[1769459147380,0.03,87904.0,87894.0,0.02340763]
[1769459147525,0.03,87904.0,87894.0,0.57135812]
[1769459147724,0.03,87903.0,87894.0,0.57135812]
[1769459148891,0.03,87909.0,87894.0,0.57135812]
[1769459149926,0.03,87911.0,87895.0,0.05713581]
[1769459150074,0.03,87911.0,87899.0,0.50747805]
[1769459150256,0.03,87911.0,87903.0,0.50747805]
[1769459150985,0.03,87910.0,87902.0,0.02404619]
[1769459151390,0.02310036,87928.0,87911.0,0.50747805]
[1769459151603,0.11255698,87927.0,87911.0,0.50747805]
[1769459151824,0.11255698,87926.0,87911.0,0.53703936]
[1769459152053,0.11255698,87926.0,87909.0,0.02404619]
[1769459152054,0.0904915,87938.0,87916.0,0.47741768]
[1769459152172,0.0904915,87938.0,87919.0,0.50747805]
[1769459152173,0.0002743,87938.0,87919.0,0.50747805]
[1769459152377,0.0002743,87938.0,87923.0,0.50747805]
[1769459152577,0.0002743,87938.0,87924.0,0.02404619]
[1769459152798,0.0002743,87938.0,87927.0,0.50747805]
[1769459153404,0.0002743,87938.0,87927.0,0.53152424]
[1769459154578,0.0002743,87938.0,87929.0,0.50747805]
[1769459154791,0.0682185,87953.0,87929.0,0.50747805]
[1769459154933,0.0682185,87953.0,87930.0,0.58227205]
[1769459154934,0.53798953,87950.0,87930.0,0.58227205]
[1769459155136,0.06821649,87956.0,87930.0,0.58227205]
[1769459155137,0.01753545,87962.0,87933.0,0.02404619]
[1769459155338,0.01136867,87961.0,87937.0,0.02404619]
[1769459155549,0.03,87958.0,87940.0,0.50747805]
[1769459155744,0.03,87958.0,87940.0,0.53152424]
[1769459155947,0.03,87958.0,87941.0,0.02439298]
[1769459156775,0.03,87957.0,87941.0,0.02439298]
[1769459157171,0.03,87957.0,87942.0,0.50747805]
[1769459157380,0.03,87957.0,87942.0,0.53152424]
[1769459157787,0.03,87956.0,87942.0,0.53152424]
[1769459157966,0.03,87956.0,87942.0,0.58203393]
[1769459158567,0.03,87956.0,87942.0,0.05050969]
[1769459158789,0.05310036,87954.0,87933.0,0.50761792]
[1769459158967,0.03,87952.0,87933.0,0.50761792]
[1769459159167,0.03,87952.0,87933.0,0.53166411]
[1769459159381,0.03,87952.0,87933.0,0.50761792]
[1769459159610,0.03,87952.0,87937.0,0.50747805]
[1769459161992,0.0568442,87960.0,87934.0,0.07788057]
[1769459161993,0.03,87951.0,87938.0,0.02404619]
[1769459162204,0.03,87951.0,87933.0,0.00013987]
[1769459162205,0.17492,87966.0,87951.0,0.00061033]
[1769459162413,0.02310036,87968.0,87952.0,0.50625739]
[1769459162608,0.02310036,87968.0,87952.0,0.55934878]
[1769459162749,0.06820625,87969.0,87952.0,0.55934878]
[1769459162945,0.03,87966.0,87952.0,0.55934878]
[1769459163147,0.03,87966.0,87954.0,0.50747805]
[1769459163354,0.03,87966.0,87954.0,0.53152424]
[1769459164010,0.03,87970.0,87954.0,0.53152424]
[1769459164319,0.03,87970.0,87955.0,0.05846156]
[1769459164508,0.03,87970.0,87954.0,0.50747805]
[1769459168987,0.03,87963.0,87933.0,0.00013987]
[1769459169204,0.03,87957.0,87936.0,0.50747805]
[1769459169444,0.03,87955.0,87938.0,0.50747805]
[1769459169628,0.03,87955.0,87941.0,0.50747805]
[1769459172067,0.03,87955.0,87940.0,0.40550085]
[1769459172068,0.03,87955.0,87942.0,0.00028427]
[1769459172279,0.03,87955.0,87943.0,0.50747805]
[1769459172482,0.53798953,87966.0,87943.0,0.50747805]
[1769459172483,0.03,87963.0,87943.0,0.50747805]
[1769459172656,0.03,87961.0,87951.0,0.50747805]
[1769459173327,0.03,87961.0,87950.0,0.38150603]
[1769459173574,0.03,87963.0,87950.0,0.38150603]
[1769459173774,0.05310036,87963.0,87947.0,0.53152424]
[1769459176170,0.05310036,87963.0,87947.0,0.50747805]
[1769459176171,0.56798953,87963.0,87947.0,0.50747805]
[1769459176405,0.03,87961.0,87947.0,0.50747805]
[1769459179608,0.03,87961.0,87948.0,0.0379267]
[1769459179791,0.03,87961.0,87949.0,0.5201215]
[1769459180003,0.03,87960.0,87949.0,0.5201215]
[1769459181040,0.03,87959.0,87949.0,0.5201215]
[1769459181996,0.03,87958.0,87949.0,0.5201215]
[1769459183032,0.03,87963.0,87949.0,0.5201215]
[1769459183218,0.03,87963.0,87950.0,0.5321288]
[1769459186190,0.03,87963.0,87950.0,0.53180818]
[1769459188774,0.03,87967.0,87950.0,0.53180818]
[1769459189963,0.02323469,87968.0,87950.0,0.53180818]
[1769459189964,0.03,87965.0,87950.0,0.53180818]
[1769459190164,0.00938966,87950.0,87937.0,0.07787257]
[1769459190375,0.00938966,87950.0,87941.0,0.02439789]
[1769459190580,0.57151709,87966.0,87944.0,0.5201215]
[1769459190787,0.50330855,87965.0,87944.0,0.5201215]
[1769459191025,0.50330855,87964.0,87944.0,0.5201215]
[1769459191231,0.02323469,87963.0,87945.0,0.57457344]
[1769459191543,0.50330855,87964.0,87945.0,0.57457344]
[1769459191544,0.05323469,87962.0,87945.0,0.57457344]
[1769459192209,0.06820663,87968.0,87945.0,0.57457344]
[1769459192210,0.01992815,87984.0,87962.0,0.00999999]
[1769459192417,0.0902172,87986.0,87962.0,0.00999999]
[1769459192418,0.03,87981.0,87964.0,0.5173906]
[1769459192639,0.01992815,87982.0,87964.0,0.5173906]
[1769459192640,0.03,87979.0,87965.0,0.052707]
[1769459192866,0.01992815,87982.0,87965.0,0.052707]
[1769459192867,0.03,87977.0,87965.0,0.052707]
[1769459193537,0.03,87977.0,87964.0,0.5173906]
[1769459193954,0.03,87976.0,87964.0,0.5173906]
[1769459194138,0.03046638,87976.0,87964.0,0.5173906]
[1769459195003,0.03,87975.0,87964.0,0.5173906]
[1769459195331,0.03,87975.0,87964.0,0.57156945]
[1769459196168,0.03046638,87976.0,87964.0,0.57156945]
[1769459196366,0.03046638,87976.0,87950.0,0.42684448]
[1769459196367,0.03046638,87976.0,87959.0,0.5201215]
[1769459196368,0.03,87974.0,87959.0,0.5201215]
[1769459196597,0.03,87974.0,87954.0,0.22032]
[1769459196598,0.03,87970.0,87954.0,0.22032]
[1769459196966,0.03,87970.0,87955.0,0.5201215]
[1769459197592,0.49803124,87973.0,87955.0,0.5201215]
[1769459197593,0.03,87969.0,87955.0,0.5201215]
[1769459197800,0.03,87969.0,87957.0,0.5201215]
[1769459198793,0.03,87968.0,87957.0,0.5201215]
[1769459199827,0.03,87967.0,87957.0,0.5201215]
[1769459200866,0.03,87966.0,87957.0,0.5201215]
[1769459201920,0.02323469,87973.0,87957.0,0.5201215]
[1769459201921,0.03,87965.0,87957.0,0.5201215]
[1769459202922,0.03,87972.0,87957.0,0.5201215]
[1769459204282,0.03,87965.0,87951.0,0.1748]
[1769459204715,0.03,87965.0,87952.0,0.54451939]
[1769459205191,0.03,87964.0,87952.0,0.54451939]
[1769459206323,0.03,87963.0,87952.0,0.54451939]
[1769459207327,0.03,87971.0,87952.0,0.54451939]
[1769459207520,0.03,87969.0,87952.0,0.54451939]
[1769459208767,0.04136764,87969.0,87952.0,0.54451939]
[1769459208963,0.03,87967.0,87952.0,0.54451939]
[1769459209798,0.03,87967.0,87952.0,0.5201215]
[1769459210044,0.04552,87990.0,87951.0,0.1748]
[1769459210045,0.0002893,87985.0,87970.0,0.54454724]
[1769459210246,0.00042913,87985.0,87972.0,0.54304464]
[1769459210464,0.00042913,87985.0,87976.0,0.54454724]
[1769459210670,0.00042913,87985.0,87976.0,0.56943027]
[1769459217230,0.03042663,87985.0,87976.0,0.56943027]
[1769459217878,0.03,87983.0,87976.0,0.56943027]
[1769459218114,0.0302868,87983.0,87976.0,0.56943027]
[1769459218872,0.03,87982.0,87976.0,0.56943027]
[1769459219094,0.0302868,87982.0,87976.0,0.56943027]
[1769459219948,0.03,87981.0,87976.0,0.56943027]
[1769459220908,0.03,87980.0,87976.0,0.56943027]
[1769459221845,0.03,87979.0,87976.0,0.56943027]
[1769459222250,0.030085,87979.0,87976.0,0.56943027]
[1769459222630,0.0002018,87982.0,87979.0,0.00959436]
[1769459222829,0.0002018,87982.0,87976.0,0.56943027]
[1769459223435,0.00013983,87985.0,87977.0,0.05694303]
[1769459223637,0.00013983,87985.0,87976.0,0.56943027]
[1769459224061,0.03,87984.0,87976.0,0.56943027]
[1769459225093,0.03,87983.0,87976.0,0.56943027]
[1769459226056,0.03,87982.0,87976.0,0.56943027]
[1769459227089,0.03,87981.0,87976.0,0.56943027]
[1769459228141,0.03,87980.0,87976.0,0.56943027]
[1769459229256,0.03,87979.0,87976.0,0.56943027]
[1769459230145,0.03,87979.0,87976.0,0.02408284]
[1769459230341,0.0115054,87985.0,87971.0,0.56943027]
[1769459230342,0.03,87975.0,87971.0,0.56943027]
[1769459230543,0.03,87975.0,87972.0,0.02488303]
[1769459230764,0.03,87975.0,87973.0,0.54454724]
[1769459231356,0.03,87974.0,87973.0,0.54454724]
[1769459233173,0.00013983,87985.0,87973.0,0.54454724]
[1769459234254,0.03013983,87985.0,87973.0,0.54454724]
[1769459235123,0.01136492,87990.0,87973.0,0.54454724]
[1769459235335,0.01136492,87990.0,87973.0,0.54468707]
[1769459235336,0.01136518,87988.0,87973.0,0.54468707]
[1769459235488,0.03,87987.0,87973.0,0.54468707]
[1769459235713,0.03,87987.0,87973.0,0.5695701]
[1769459236543,0.03,87986.0,87973.0,0.64400311]
[1769459237667,0.01136505,87989.0,87973.0,0.64400311]
[1769459237668,0.03,87988.0,87973.0,0.64400311]
[1769459237870,0.03,87988.0,87974.0,0.02488303]
[1769459238068,0.03,87988.0,87974.0,0.54454724]
[1769459238279,0.03,87988.0,87977.0,0.02488303]
[1769459238485,0.03,87988.0,87977.0,0.56943027]
[1769459238628,0.06818762,87993.0,87977.0,0.56943027]
[1769459238629,0.03,87987.0,87977.0,0.56943027]
[1769459239583,0.03,87986.0,87977.0,0.56943027]
[1769459240618,0.03,87985.0,87977.0,0.02488303]
[1769459241778,0.03,87984.0,87973.0,0.00013983]
[1769459242865,0.44962041,87990.0,87973.0,0.02382164]
[1769459242866,0.03,87983.0,87973.0,0.02382164]
[1769459243230,0.03,87983.0,87973.0,0.09624189]
[1769459243434,0.03,87983.0,87973.0,0.62186272]
[1769459243633,0.03,87983.0,87974.0,0.02368181]
[1769459243834,0.38143083,87990.0,87974.0,0.54930264]
[1769459243835,0.03,87982.0,87974.0,0.54930264]
[1769459244519,0.03,87982.0,87975.0,0.05494425]
[1769459244935,0.03,87981.0,87975.0,0.05494425]
[1769459245264,0.03,87981.0,87974.0,0.54930264]
[1769459245915,0.03,87980.0,87974.0,0.54930264]
[1769459247099,0.03,87979.0,87975.0,0.02368181]
[1769459247331,0.03,87979.0,87976.0,0.54930264]
[1769459247811,0.03,87979.0,87977.0,0.02368181]
[1769459248039,0.03,87978.0,87977.0,0.02368181]
[1769459249725,0.38143083,87990.0,87977.0,0.02368181]
[1769459249933,0.11275614,87989.0,87977.0,0.02368181]
[1769459250110,0.03,87987.0,87977.0,0.02368181]
[1769459250323,0.03,87985.0,87977.0,0.02368181]
[1769459250559,0.03,87983.0,87977.0,0.02368181]
[1769459251501,0.03,87982.0,87977.0,0.02368181]
[1769459252408,0.03,87981.0,87973.0,0.00013983]
[1769459252606,0.01136544,87986.0,87973.0,0.00013983]
[1769459252607,0.03,87976.0,87973.0,0.00013983]
[1769459253416,0.03,87976.0,87973.0,0.02382164]
[1769459253635,0.04136596,87982.0,87973.0,0.02382164]
[1769459253797,0.03,87982.0,87973.0,0.02382164]
[1769459254429,0.03,87980.0,87973.0,0.00013983]
[1769459255630,0.03,87979.0,87973.0,0.00013983]
[1769459256409,0.03,87978.0,87973.0,0.00013983]
[1769459257564,0.03,87983.0,87973.0,0.00013983]
[1769459257924,0.04136583,87983.0,87973.0,0.00013983]
[1769459258130,0.01136647,87978.0,87960.0,0.38143083]
[1769459258364,0.03,87969.0,87960.0,0.00046638]
[1769459259501,0.03,87971.0,87960.0,0.00046638]
[1769459260096,0.0002018,87994.0,87960.0,0.00046638]
[1769459260097,0.0002018,87994.0,87962.0,0.02368181]
[1769459260329,0.11267739,87985.0,87966.0,0.02368181]
[1769459260530,0.03,87989.0,87970.0,0.54930264]
[1769459260732,0.04136531,87987.0,87970.0,0.52343763]
[1769459260979,0.03,87985.0,87972.0,0.52562083]
[1769459261134,0.03,87985.0,87972.0,0.51688773]
[1769459261483,0.03,87985.0,87972.0,0.51389092]
[1769459261749,0.03,87985.0,87972.0,0.53757273]
[1769459261872,0.03,87984.0,87974.0,0.52562083]
[1769459262893,0.49807476,87994.0,87974.0,0.52562083]
[1769459263094,0.06818828,87992.0,87974.0,0.64646617]
[1769459263309,0.11268491,87991.0,87974.0,0.64646617]
[1769459263487,0.01136454,87993.0,87974.0,0.64646617]
[1769459263688,0.11268424,87992.0,87974.0,0.64646617]
[1769459263913,0.11268424,87991.0,87974.0,0.64646617]
[1769459264123,0.03,87990.0,87974.0,0.64646617]
[1769459264404,0.03,87990.0,87978.0,0.02368181]
[1769459264624,0.03,87990.0,87978.0,0.54930264]
[1769459265156,0.03,87989.0,87978.0,0.54930264]
[1769459266034,0.03,87988.0,87978.0,0.54930264]
[1769459267171,0.03,87987.0,87978.0,0.54930264]
[1769459268142,0.03,87992.0,87978.0,0.54930264]
[1769459269249,0.03,87993.0,87978.0,0.54930264]
[1769459270288,0.04136454,87993.0,87978.0,0.54930264]
[1769459270589,0.03,87993.0,87978.0,0.54930264]
[1769459271920,0.03,87992.0,87982.0,0.52492225]
[1769459272068,0.03,87992.0,87982.0,0.51837265]
[1769459272273,0.03,87992.0,87982.0,0.50492225]
[1769459272478,0.03,87992.0,87982.0,0.50457159]
[1769459272881,0.03,87999.0,87982.0,0.50457159]
[1769459273100,0.03,87997.0,87982.0,0.50457159]
[1769459274141,0.03,87996.0,87982.0,0.50457159]
[1769459275059,0.03,87999.0,87982.0,0.50457159]
[1769459275285,0.03,87999.0,87984.0,0.50154299]
[1769459275522,0.03,87999.0,87986.0,0.50154299]
[1769459275718,0.03,87999.0,87986.0,0.50099427]
[1769459276155,0.03,87998.0,87986.0,0.50099427]
[1769459276570,0.03,87993.0,87985.0,0.02337926]
[1769459276781,0.03,87993.0,87979.0,0.02337926]
[1769459276963,0.03,87991.0,87979.0,0.02337926]
[1769459278082,0.38628516,88018.0,87976.0,0.50154299]
[1769459278083,0.0004,88000.0,87976.0,0.50154299]
[1769459278286,0.0004,88000.0,87971.0,0.1476]
[1769459278287,0.38121543,87990.0,87977.0,0.17476]
[1769459280431,0.01136492,87990.0,87977.0,0.17476]
[1769459280687,0.01136479,87991.0,87977.0,0.17476]
[1769459281097,0.04136479,87991.0,87977.0,0.17476]
[1769459281318,0.03,87983.0,87976.0,0.50154299]
[1769459281553,0.03,87983.0,87969.0,0.147774]
[1769459281554,0.03,87975.0,87969.0,0.147774]
[1769459282610,0.01136596,87982.0,87969.0,0.147774]
[1769459282611,0.03,87981.0,87969.0,0.147774]
[1769459283584,0.0113657,87984.0,87969.0,0.147774]
[1769459283585,0.03,87980.0,87969.0,0.147774]
[1769459283987,0.41121543,87980.0,87969.0,0.147774]
[1769459284347,0.4932364,87980.0,87969.0,0.147774]
[1769459284548,0.50460261,87980.0,87969.0,0.147774]
[1769459284995,0.11202097,87980.0,87969.0,0.147774]
[1769459285194,0.03,87979.0,87969.0,0.000174]
[1769459285395,0.03,87979.0,87970.0,0.52492225]
[1769459286389,0.03,87978.0,87970.0,0.52492225]
[1769459287400,0.03,87985.0,87970.0,0.52492225]
[1769459287991,0.03,87985.0,87971.0,0.02337926]
[1769459288172,0.13872442,87985.0,87971.0,0.52492225]
[1769459288373,0.03,87987.0,87971.0,0.52492225]